lending/lending_fUSD_20240510
["ID","MTS","AMOUNT","RATE_DAILY","PERIOD"]
[326756451,1715317838998,-436.77,0.00016437,2]
[326756453,1715317839007,-800.0,0.00016438,2]
[326756455,1715317839016,-300.0,0.00016438,2]
[326756457,1715317839026,-1226.23788858,0.000165,2]
[326756459,1715317839035,-182.59,0.00016712,2]
[326756461,1715317839045,-167.0,0.00017054,2]
[326756463,1715317839054,-800.0,0.00017068,2]
[326756465,1715317839063,-527.0,0.000171,2]
[326756467,1715317839073,-400.0,0.0001742,2]
[326756469,1715317839082,-250.0,0.0001747,2]
[326756471,1715317839092,-167.0,0.00017617,2]
[326756473,1715317839101,-12479.87627483,0.00017636,2]
[326756475,1715317839110,-885.87171054,0.0001788,2]
[326756477,1715317839119,-885.87171053,0.0001788,2]
[326756479,1715317839129,-885.87171053,0.0001788,2]
[326756481,1715317839138,-972.74838,0.00018,2]
[326756483,1715317839148,-680.0,0.0001808,2]
[326756485,1715317839157,-167.0,0.0001818,2]
[326756487,1715317839167,-509.6,0.00018412,2]
[326756489,1715317839176,-290.356,0.00018435,2]
[326756491,1715317839186,-2295.0,0.00018435,2]
[326756493,1715317839195,-5747.0,0.00018435,2]
[326756495,1715317839204,-5909.0,0.00018435,2]
[326756497,1715317839212,-1059.893,0.00018435,2]
[326756499,1715317839222,-885.87171053,0.00018612,2]
[326756501,1715317839231,-167.0,0.00018743,2]
[326756503,1715317839240,-400.0,0.00019004,2]
[326756505,1715317839250,-156.62,0.00019178,2]
[326756507,1715317839259,-154.4,0.00019178,2]
[326756509,1715317839268,-158.5,0.00019178,2]
[326756511,1715317839277,-277.69,0.000192,2]
[326756513,1715317839286,-201.85,0.000192,2]
[326756515,1715317839295,-12479.87627483,0.00019215,2]
[326756517,1715317839304,-167.0,0.00019306,2]
[326756519,1715317839314,-303.64,0.000195,2]
[326756521,1715317839323,-151.28,0.000195,2]
[326756523,1715317839332,-421.0,0.000195,2]
[326756525,1715317839341,-167.0,0.00019869,2]
[326756527,1715317839350,-173.74336358,0.000199,2]
[326756529,1715317839360,-261.40559667,0.00020035,2]
[326756531,1715317839372,-680.0,0.00020089,2]
[326756533,1715317839382,-1547.62107427,0.00020089,2]
[326756537,1715317839417,-273.63974112,0.00020089,2]
[326756541,1715317839456,-6864.62995654,0.00020089,2]
[326756661,1715317841828,-1314.10922807,0.00020089,2]
[326756662,1715317841838,-1677.61530165,0.00020089,2]
[326756663,1715317841864,-733.881,0.00020089,2]
[326756665,1715317841877,-2940.96388949,0.00020089,2]
[326756667,1715317841889,-4647.53980886,0.00020089,2]
[326756668,1715317841898,-150.238,0.00020135,2]
[326756669,1715317841908,-150.15,0.00020135,2]
[326756670,1715317841917,-153.235,0.00020135,2]
[326756671,1715317841927,-972.0,0.00020135,2]
[326756672,1715317841936,-2157.0,0.00020135,2]
[326756673,1715317841946,-1398.0,0.00020135,2]
[326756674,1715317841955,-1264.913,0.00020135,2]
[326756675,1715317841964,-470.32408122,0.00020135,2]
[326756676,1715317841978,-74.41491878,0.00020135,2]
[326756677,1715317841988,-1793.408,0.00020135,2]
[326756678,1715317841997,-1232.885,0.00020135,2]
[326756679,1715317842006,-438.0,0.00020135,2]
[326756680,1715317842016,-164.0,0.00020135,2]
[326756681,1715317842025,-809.0,0.00020135,2]
[326756682,1715317842034,-422.959,0.00020135,2]
[326756683,1715317842043,-611.0,0.00020135,2]
[326756684,1715317842053,-1479.0,0.00020135,2]
[326756685,1715317842063,-152.057,0.00020135,2]
[326756686,1715317842072,-2412.0,0.00020135,2]
[326756687,1715317842080,-150.864,0.00020135,2]
[326756688,1715317842088,-1145.547,0.00020135,2]
[326756689,1715317842097,-1646.305,0.00020135,2]
[326756690,1715317842107,-478.278,0.00020135,2]
[326756691,1715317842116,-216.0,0.00020135,2]
[326756692,1715317842126,-3155.0,0.00020135,2]
[326756693,1715317842135,-885.87171053,0.00020516,2]
[326756694,1715317842145,-1755.83984582,0.00020545,5]
[326756695,1715317842155,-561.3,0.00020546,2]
[326756696,1715317842164,-5855.77175437,0.00020793,2]
[326756697,1715317842176,-819.6396979,0.00020793,2]
[326756698,1715317842188,-279.9443889,0.00020793,2]
[326756699,1715317842199,-623.26266108,0.00020793,2]
[326756700,1715317842210,-3421.20084885,0.00020793,2]
[326756701,1715317842224,-1480.05692373,0.00020793,2]
[326756702,1715317842233,-155.14433206,0.00021104,2]
[326756703,1715317842243,-158.47804644,0.00021202,2]
[326756704,1715317842252,-288.0,0.00021435,2]
[326756705,1715317842261,-936.21206458,0.00021435,2]
[326756706,1715317842273,-1358.78793542,0.00021435,2]
[326756707,1715317842282,-1141.21206458,0.00021435,2]
[326756708,1715317842293,-982.0491942,0.00021435,2]
[326756737,1715317843432,-950.52662173,0.00020089,2]
[326756738,1715317843442,-2000.99437943,0.00021435,2]
[326756739,1715317843454,-1622.74436179,0.00021435,2]
[326756740,1715317843465,-1043.73947963,0.00021435,2]
[326756741,1715317843482,-1965.80447952,0.00021435,2]
[326756742,1715317843492,-1353.40635209,0.00021435,2]
[326756743,1715317843617,-1546.04968876,0.00021435,2]
[326756744,1715317843626,-1059.0,0.00021435,2]
[326756745,1715317843635,-586.31788124,0.00022084,2]
[326756746,1715317843644,-680.0,0.00022098,2]
[326756747,1715317843653,-201.85,0.000222,2]
[326756748,1715317843662,-194.30727999,0.00022211,2]
[326756749,1715317843671,-277.69,0.000223,2]
[326756750,1715317843679,-194.30727999,0.00022366,2]
[326756751,1715317843688,-4165.00726794,0.00022372,2]
[326756752,1715317843718,-432.16,0.00022372,2]
[326756753,1715317843730,-7882.70900689,0.00022372,2]
[326756754,1715317843739,-412.23,0.000224,2]
[326756755,1715317843749,-885.87171053,0.0002242,2]
[326756756,1715317843758,-194.30727999,0.00022525,2]
[326756757,1715317843767,-154.81693472,0.00022549,2]
[326756758,1715317843776,-161.10749059,0.00022657,2]
[326756759,1715317843785,-158.57818287,0.00022677,2]
[326756760,1715317843794,-160.82256003,0.00022709,2]
[326756761,1715317843803,-150.0,0.000228,3]
[326756762,1715317843812,-972.74838,0.00023,2]
[326756763,1715317843821,-1654.90359284,0.00023025,2]
[326756764,1715317843829,-160.82256003,0.00023026,2]
[326756765,1715317843838,-204.21085562,0.00023035,2]
[326756766,1715317843847,-972.0,0.00023135,2]
[326756767,1715317843857,-914.252,0.00023135,2]
[326756768,1715317843866,-574.413,0.00023135,2]
[326756769,1715317843874,-1260.0,0.00023135,2]
[326756770,1715317843883,-543.0,0.00023135,2]
[326756771,1715317843892,-1789.0,0.00023135,2]
[326756772,1715317843901,-1227.0,0.00023135,2]
[326756773,1715317843910,-438.0,0.00023135,2]
[326756774,1715317843918,-164.0,0.00023135,2]
[326756775,1715317843927,-809.0,0.00023135,2]
[326756776,1715317843937,-421.0,0.00023135,2]
[326756777,1715317843946,-611.0,0.00023135,2]
[326756778,1715317843955,-1479.0,0.00023135,2]
[326756779,1715317843963,-150.0,0.00023135,2]
[326756780,1715317843973,-2412.0,0.00023135,2]
[326756781,1715317843982,-1138.0,0.00023135,2]
[326756782,1715317843991,-1645.0,0.00023135,2]
[326756783,1715317844000,-444.0,0.00023135,2]
[326756784,1715317844009,-215.0,0.00023135,2]
[326756785,1715317844018,-3155.0,0.00023135,2]
[326756786,1715317844027,-150.0,0.000233,3]
[326756787,1715317844035,-155.14433206,0.00023546,2]
[326756788,1715317844044,-277.69,0.000237,2]
[326756789,1715317844054,-201.85,0.000237,2]
[326756790,1715317844063,-154.81693472,0.00023736,2]
[326756791,1715317844072,-154.01522209,0.00023775,2]
[326756793,1715317844081,-150.0,0.000238,4]
[326756794,1715317844089,-3913.63545192,0.0002385,2]
[326756796,1715317844099,-12479.87627483,0.0002395,2]
[326756798,1715317844107,-412.23,0.000241,2]
[326756799,1715317844116,-680.0,0.00024106,2]
[326756800,1715317844125,-200.0,0.00024199,2]
[326756801,1715317844134,-150.0,0.000243,4]
[326756802,1715317844143,-885.87171053,0.00024324,2]
[326756803,1715317844152,-160.63,0.00024415,2]
[326756804,1715317844161,-288.0,0.00024435,2]
[326756805,1715317844170,-2295.0,0.00024435,2]
[326756806,1715317844179,-5743.0,0.00024435,2]
[326756807,1715317844188,-3699.382,0.00024435,2]
[326756808,1715317844196,-1059.0,0.00024435,2]
[326756809,1715317844205,-194.30727999,0.00024596,2]
[326756810,1715317844214,-154.81693472,0.0002462,2]
[326756811,1715317844225,-3875.42,0.00024658,2]
[326756812,1715317844234,-155.45142787,0.00024667,2]
[326756813,1715317844242,-150.0,0.000248,4]
[326756814,1715317844251,-156.80125137,0.00024812,2]
[326756815,1715317844259,-261.40559666,0.00024899,2]
[326756816,1715317844269,-2260.0,0.000249,2]
[326756817,1715317844278,-152.0,0.0002492,3]
[326756818,1715317844287,-158.47804644,0.00024942,2]
[326756819,1715317844295,-153.21247534,0.00024976,2]
[326756820,1715317844304,-154.57283398,0.00024993,2]
[326756821,1715317844313,-200.0,0.00025,2]
[326756822,1715317844323,-1008.83842876,0.00025,2]
[326756823,1715317844332,-1022.13208428,0.00025,2]
[326756824,1715317844341,-13698.23364425,0.00025,2]
[326756825,1715317844350,-300.0,0.00025,2]
[326756826,1715317844359,-152.34731563,0.0002507,2]
[326756827,1715317844367,-158.47804644,0.00025241,2]
[326756828,1715317844379,-200.0,0.0002525,2]
[326756829,1715317844389,-150.0,0.000253,4]
[326756830,1715317844398,-154.81693472,0.0002537,2]
[326756831,1715317844407,-150.0,0.00025414,2]
[326756832,1715317844417,-150.0,0.00025459,2]
[326756833,1715317844426,-150.0,0.00025491,2]
[326756834,1715317844435,-200.0,0.00025503,2]
[326756835,1715317844443,-150.0,0.00025508,2]
[326756836,1715317844454,-12479.87627483,0.00025529,2]
[326756837,1715317844466,-150.0,0.00025543,2]
[326756838,1715317844477,-150.0,0.00025549,2]
[326756839,1715317844486,-154.57283398,0.00025555,2]
[326756840,1715317844495,-150.0,0.00025567,2]
[326756841,1715317844504,-150.0,0.0002558,2]
[326756842,1715317844513,-150.0,0.00025582,2]
[326756843,1715317844522,-150.0,0.00025593,2]
[326756844,1715317844531,-412.23,0.000256,2]
[326756845,1715317844540,-154.01522209,0.00025602,2]
[326756846,1715317844549,-150.0,0.00025624,2]
[326756847,1715317844559,-150.0,0.00025646,2]
[326756848,1715317844568,-150.0,0.00025677,2]
[326756849,1715317844577,-150.0,0.00025679,2]
[326756850,1715317844586,-150.0,0.00025685,2]
[326756851,1715317844595,-150.0,0.00025694,2]
[326756852,1715317844603,-150.0,0.00025709,2]
[326756853,1715317844612,-150.0,0.00025725,2]
[326756854,1715317844621,-150.0,0.00025732,2]
[326756855,1715317844630,-150.0,0.00025752,2]
[326756856,1715317844639,-200.0,0.00025758,2]
[326756857,1715317844648,-150.0,0.00025774,2]
[326756858,1715317844658,-150.0,0.000258,4]
[326756859,1715317844667,-150.0,0.00025804,2]
[326756860,1715317844676,-150.0,0.00025808,2]
[326756861,1715317844684,-150.0,0.00025812,2]
[326756862,1715317844694,-150.0,0.00025847,2]
[326756863,1715317844702,-150.0,0.00025859,2]
[326756864,1715317844711,-150.0,0.0002586,2]
[326756865,1715317844720,-150.0,0.00025889,2]
[326756866,1715317844730,-158.92,0.0002589,2]
[326756867,1715317844739,-150.0,0.00025894,2]
[326756868,1715317844748,-150.0,0.00025942,2]
[326756869,1715317844757,-150.0,0.00025948,2]
[326756870,1715317844766,-150.0,0.00026003,2]
[326756871,1715317844775,-150.0,0.0002601,2]
[326756872,1715317844784,-150.0,0.00026013,2]
[326756873,1715317844793,-150.0,0.00026024,2]
[326756874,1715317844802,-150.0,0.00026058,2]
[326756875,1715317844811,-150.0,0.00026068,2]
[326756876,1715317844820,-150.0,0.00026087,2]
[326756877,1715317844831,-277.69,0.000261,2]
[326756878,1715317844841,-150.0,0.00026112,2]
[326756879,1715317844852,-150.0,0.00026123,2]
[326756880,1715317844861,-150.0,0.00026125,2]
[326756881,1715317844870,-150.0,0.00026126,2]
[326756882,1715317844879,-970.03,0.00026135,2]
[326756883,1715317844888,-1260.0,0.00026135,2]
[326756884,1715317844897,-543.0,0.00026135,2]
[326756885,1715317844906,-1789.0,0.00026135,2]
[326756886,1715317844915,-1227.0,0.00026135,2]
[326756887,1715317844924,-438.0,0.00026135,2]
[326756888,1715317844932,-421.0,0.00026135,2]
[326756889,1715317844942,-233.905,0.00026135,2]
[326756890,1715317844952,-1479.0,0.00026135,2]
[326756891,1715317844962,-2412.0,0.00026135,2]
[326756892,1715317844971,-1138.0,0.00026135,2]
[326756893,1715317844980,-1645.0,0.00026135,2]
[326756894,1715317844989,-444.0,0.00026135,2]
[326756895,1715317844999,-215.0,0.00026135,2]
[326756896,1715317845009,-1484.308,0.00026135,2]
[326756897,1715317845018,-369.0,0.00026161,2]
[326756898,1715317845027,-201.85,0.000262,2]
[326756899,1715317845037,-150.0,0.00026203,2]
[326756900,1715317845046,-150.0,0.00026206,2]
[326756901,1715317845056,-150.0,0.00026215,2]
[326756902,1715317845065,-885.87171053,0.00026228,2]
[326756903,1715317845074,-150.0,0.00026282,2]
[326756904,1715317845083,-150.0,0.000263,5]
[326756905,1715317845093,-150.0,0.00026301,2]
[326756906,1715317845102,-150.0,0.00026311,2]
[326756907,1715317845111,-150.0,0.00026399,2]
[326756908,1715317845120,-204.21085562,0.00026399,2]
[326756909,1715317845129,-150.0,0.00026408,2]
[326756910,1715317845139,-150.0,0.00026418,2]
[326756911,1715317845148,-150.0,0.00026426,2]
[326756912,1715317845157,-150.0,0.00026443,2]
[326756913,1715317845166,-150.0,0.00026453,2]
[326756914,1715317845175,-150.0,0.00026462,2]
[326756915,1715317845184,-1654.90359282,0.00026463,2]
[326756916,1715317845200,-152.0,0.0002649,4]
[326756917,1715317845214,-154.57283398,0.0002655,2]
[326756918,1715317845223,-150.0,0.00026551,2]
[326756919,1715317845233,-150.0,0.00026553,2]
[326756920,1715317845242,-150.0,0.00026587,2]
[326756921,1715317845251,-150.0,0.0002659,2]
[326756922,1715317845260,-150.0,0.00026593,2]
[326756923,1715317845269,-150.0,0.00026633,2]
[326756924,1715317845278,-150.0,0.00026639,2]
[326756925,1715317845287,-150.0,0.00026666,2]
[326756926,1715317845296,-150.0,0.00026685,2]
[326756927,1715317845305,-150.0,0.00026688,2]
[326756928,1715317845315,-150.0,0.00026689,2]
[326756929,1715317845324,-150.0,0.00026691,2]
[326756930,1715317845333,-412.23,0.000267,2]
[326756931,1715317845342,-150.0,0.00026721,2]
[326756932,1715317845351,-150.0,0.00026723,2]
[326756933,1715317845360,-150.0,0.00026724,2]
[326756934,1715317845370,-150.0,0.00026732,2]
[326756935,1715317845382,-150.0,0.00026737,2]
[326756936,1715317845392,-305.19375696,0.00026772,2]
[326756937,1715317845401,-150.0,0.00026777,2]
[326756938,1715317845410,-187.27859971,0.0002678,3]
[326756939,1715317845420,-150.0,0.00026793,2]
[326756940,1715317845429,-2001.030705,0.000268,2]
[326756941,1715317845438,-150.0,0.000268,5]
[326756942,1715317845448,-3913.6354519,0.00026807,2]
[326756943,1715317845458,-150.0,0.00026816,2]
[326756944,1715317845468,-150.0,0.00026827,2]
[326756945,1715317845478,-150.0,0.00026841,2]
[326756946,1715317845487,-150.0,0.00026844,2]
[326756947,1715317845495,-150.0,0.00026868,2]
[326756948,1715317845504,-300.0,0.00026871,2]
[326756949,1715317845513,-150.0,0.00026895,2]
[326756950,1715317845523,-150.0,0.00026905,2]
[326756951,1715317845532,-150.0,0.00026927,2]
[326756952,1715317845541,-300.0,0.00026933,2]
[326756953,1715317845550,-150.0,0.00026957,2]
[326756954,1715317845559,-1002.84389759,0.00026989,2]
[326756955,1715317845569,-150.0,0.00026989,2]
[326756956,1715317845578,-1749.44974369,0.00027,2]
[326756957,1715317845587,-150.0,0.00027025,2]
[326756958,1715317845597,-150.0,0.00027026,2]
[326756959,1715317845605,-150.0,0.00027067,2]
[326756960,1715317845615,-155.45142787,0.00027101,2]
[326756961,1715317845624,-12479.87627483,0.00027108,2]
[326756962,1715317845633,-300.0,0.00027135,2]
[326756963,1715317845643,-194.30727999,0.00027154,2]
[326756964,1715317845652,-150.0,0.00027167,2]
[326756965,1715317845662,-210.922582,0.00027175,2]
[326756966,1715317845672,-200.0,0.00027175,2]
[326756967,1715317845683,-200.0,0.00027176,2]
[326756968,1715317845693,-500.0,0.00027176,2]
[326756969,1715317845704,-200.0,0.00027176,2]
[326756970,1715317845715,-300.0,0.00027214,2]
[326756971,1715317845963,-150.0,0.00027256,2]
[326756972,1715317845973,-150.0,0.00027278,2]
[326756973,1715317845983,-150.0,0.00027279,2]
[326756974,1715317845992,-150.0,0.00027283,2]
[326756975,1715317846004,-150.0,0.00027295,2]
[326756976,1715317846014,-10000.0,0.00027297,2]
[326756977,1715317846024,-191.0,0.000273,2]
[326756978,1715317846034,-1668.296777,0.000273,2]
[326756979,1715317846043,-160.0,0.000273,2]
[326756980,1715317846054,-1500.0,0.000273,2]
[326756981,1715317846064,-1001.003867,0.000273,2]
[326756982,1715317846075,-150.0,0.000273,5]
[326756983,1715317846087,-150.0,0.00027308,2]
[326756984,1715317846097,-150.0,0.00027315,2]
[326756985,1715317846107,-150.0,0.00027321,2]
[326756986,1715317846118,-150.0,0.00027322,2]
[326756987,1715317846128,-150.0,0.00027334,2]
[326756988,1715317846138,-150.0,0.00027353,2]
[326756989,1715317846148,-453.0,0.00027375,2]
[326756990,1715317846158,-194.30727999,0.00027388,2]
[326756991,1715317846167,-150.0,0.0002739,2]
[326756992,1715317846177,-1600.03560925,0.00027393,7]
[326756993,1715317846187,-5861.29139766,0.00027394,2]
[326756994,1715317846196,-204.11016203,0.00027394,2]
[326756995,1715317846206,-11157.79467804,0.00027395,2]
[326756996,1715317846216,-467.86067259,0.00027395,2]
[326756997,1715317846226,-165.26556897,0.00027395,2]
[326756998,1715317846236,-336.79237081,0.00027395,7]
[326756999,1715317846245,-24596.79621377,0.00027395,14]
[326757000,1715317846255,-155.57,0.00027395,2]
[326757001,1715317846264,-3082.11750264,0.00027396,5]
[326757002,1715317846294,-150.0,0.00026079,2]
[326757003,1715317846304,-232.55321275,0.00027396,5]
[326757004,1715317847020,-3906.2319297,0.00027389,2]
[326757005,1715317847032,-15998.12231216,0.00027396,5]
[326757006,1715317847043,-501.57750929,0.00027397,4]
[326757007,1715317847054,-505.18771739,0.00027397,4]
[326757008,1715317847064,-689.45,0.00027397,4]
[326757009,1715317847074,-508.94900211,0.00027397,4]
[326757010,1715317847083,-1173.06,0.00027397,4]
[326757011,1715317847094,-752.88,0.00027397,4]
[326757012,1715317847103,-500.0,0.00027397,4]
[326757013,1715317847113,-500.0,0.00027397,4]
[326757014,1715317847122,-1080.19,0.00027397,4]
[326757015,1715317847131,-500.0,0.00027397,4]
[326757016,1715317847141,-500.0,0.00027397,4]
[326757017,1715317847151,-523.01,0.00027397,4]
[326757018,1715317847160,-500.0,0.00027397,4]
[326757019,1715317847169,-661.43,0.00027397,4]
[326757020,1715317847178,-1200.0,0.00027397,2]
[326757021,1715317847187,-530.97356722,0.00027397,4]
[326757022,1715317847196,-500.0,0.00027397,4]
[326757023,1715317847206,-705.34,0.00027397,4]
[326757024,1715317847215,-532.57,0.00027397,4]
[326757025,1715317847224,-514.89,0.00027397,4]
[326757026,1715317847234,-506.38736248,0.00027397,4]
[326757027,1715317847243,-500.0,0.00027397,4]
[326757028,1715317847252,-500.0,0.00027397,4]
[326757029,1715317847261,-500.0,0.00027397,4]
[326757030,1715317847272,-541.90939567,0.00027397,4]
[326757031,1715317847281,-584.92,0.00027397,4]
[326757032,1715317847290,-500.0,0.00027397,4]
[326757033,1715317847300,-500.0,0.00027397,4]
[326757034,1715317847309,-500.0,0.00027397,4]
[326757035,1715317847318,-515.7590229,0.00027397,4]
[326757036,1715317847328,-500.0,0.00027397,4]
[326757037,1715317847337,-518.30002137,0.00027397,4]
[326757038,1715317847346,-534.43,0.00027397,4]
[326757039,1715317847355,-639.69747836,0.00027397,4]
[326757040,1715317847365,-777.67,0.00027397,2]
[326757041,1715317847375,-500.0,0.00027397,4]
[326757042,1715317847389,-960.88,0.00027397,4]
[326757043,1715317847398,-500.0,0.00027397,4]
[326757044,1715317847408,-500.0,0.00027397,4]
[326757045,1715317847418,-500.0,0.00027397,4]
[326757046,1715317847427,-508.9776717,0.00027397,4]
[326757047,1715317847436,-500.0,0.00027397,4]
[326757048,1715317847446,-500.0,0.00027397,2]
[326757049,1715317847455,-523.62725697,0.00027397,4]
[326757050,1715317847466,-844.57,0.00027397,4]
[326757051,1715317847476,-500.0,0.00027397,4]
[326757052,1715317847486,-543.37,0.00027397,4]
[326757053,1715317847495,-500.0,0.00027397,4]
[326757054,1715317847504,-788.72,0.00027397,4]
[326757055,1715317847513,-508.51,0.00027397,4]
[326757056,1715317847523,-500.0,0.00027397,4]
[326757057,1715317847532,-541.79,0.00027397,4]
[326757058,1715317847542,-507.03695238,0.00027397,4]
[326757059,1715317847553,-510.02379696,0.00027397,4]
[326757060,1715317847564,-575.72,0.00027397,4]
[326757061,1715317847574,-500.0,0.00027397,4]
[326757062,1715317847583,-500.0,0.00027397,4]
[326757063,1715317847593,-500.0,0.00027397,4]
[326757064,1715317847603,-508.04779943,0.00027397,4]
[326757065,1715317847613,-500.0,0.00027397,4]
[326757066,1715317847622,-500.0,0.00027397,4]
[326757067,1715317847632,-500.0,0.00027397,4]
[326757068,1715317847643,-607.76,0.00027397,4]
[326757069,1715317847653,-601.4,0.00027397,4]
[326757070,1715317847664,-505.11364767,0.00027397,4]
[326757071,1715317847674,-500.0,0.00027397,4]
[326757072,1715317847684,-500.0,0.00027397,4]
[326757073,1715317847694,-602.32,0.00027397,4]
[326757074,1715317847703,-630.42,0.00027397,4]
[326757075,1715317847713,-500.0,0.00027397,4]
[326757076,1715317847723,-500.0,0.00027397,4]
[326757077,1715317847732,-500.0,0.00027397,4]
[326757078,1715317847743,-754.95,0.00027397,4]
[326757079,1715317847753,-500.0,0.00027397,4]
[326757080,1715317847763,-500.0,0.00027397,4]
[326757081,1715317847774,-500.0,0.00027397,4]
[326757082,1715317847784,-817.3,0.00027397,4]
[326757083,1715317847793,-500.0,0.00027397,4]
[326757084,1715317847802,-500.0,0.00027397,4]
[326757085,1715317847811,-500.0,0.00027397,4]
[326757086,1715317847820,-518.91,0.00027397,4]
[326757087,1715317847830,-500.0,0.00027397,4]
[326757088,1715317847839,-153.524016,0.00027397,7]
[326757089,1715317847848,-667.34,0.00027397,4]
[326757090,1715317847858,-500.0,0.00027397,4]
[326757091,1715317847867,-500.0,0.00027397,4]
[326757092,1715317847877,-529.68122387,0.00027397,4]
[326757093,1715317847886,-821.61,0.00027397,4]
[326757094,1715317847896,-500.0,0.00027397,4]
[326757095,1715317847905,-500.0,0.00027397,4]
[326757096,1715317847914,-675.79,0.00027397,4]
[326757097,1715317847923,-500.0,0.00027397,4]
[326757098,1715317847933,-500.0,0.00027397,4]
[326757099,1715317847942,-500.0,0.00027397,4]
[326757100,1715317847951,-500.0,0.00027397,4]
[326757101,1715317847960,-561.57,0.00027397,4]
[326757102,1715317847969,-500.0,0.00027397,4]
[326757103,1715317847978,-500.0,0.00027397,4]
[326757104,1715317847987,-500.0,0.00027397,4]
[326757105,1715317847996,-500.0,0.00027397,4]
[326757106,1715317848006,-682.79,0.00027397,4]
[326757107,1715317848015,-607.5,0.00027397,4]
[326757108,1715317848024,-500.0,0.00027397,4]
[326757109,1715317848034,-639.65,0.00027397,4]
[326757110,1715317848043,-503.57866881,0.00027397,4]
[326757111,1715317848052,-732.43,0.00027397,4]
[326757112,1715317848061,-484.10298352,0.00027397,4]
[326757113,1715317848070,-500.0,0.00027397,4]
[326757114,1715317848080,-500.0,0.00027397,4]
[326757115,1715317848089,-500.0,0.00027397,4]
[326757116,1715317848429,-500.0,0.00027397,4]
[326757117,1715317848442,-515.01415403,0.00027397,4]
[326757118,1715317848452,-302.12107388,0.00027397,2]
[326757119,1715317848464,-500.0,0.00027397,4]
[326757120,1715317848475,-500.0,0.00027397,4]
[326757121,1715317848484,-621.96,0.00027397,4]
[326757122,1715317848493,-523.75,0.00027397,4]
[326757123,1715317848503,-500.0,0.00027397,4]
[326757124,1715317848512,-500.0,0.00027397,4]
[326757125,1715317848521,-500.0,0.00027397,4]
[326757126,1715317848530,-500.0,0.00027397,4]
[326757127,1715317848539,-500.0,0.00027397,4]
[326757128,1715317848549,-500.0,0.00027397,4]
[326757129,1715317848558,-502.46266878,0.00027397,4]
[326757130,1715317848567,-151.0,0.00027397,7]
[326757131,1715317848576,-151.0,0.00027397,7]
[326757132,1715317848585,-614.18,0.00027397,4]
[326757133,1715317848595,-505.34,0.00027397,4]
[326757134,1715317848605,-500.0,0.00027397,4]
[326757135,1715317848614,-712.18,0.00027397,4]
[326757136,1715317848623,-500.0,0.00027397,4]
[326757137,1715317848632,-720.57,0.00027397,4]
[326757138,1715317848642,-698.72,0.00027397,4]
[326757139,1715317848651,-700.35,0.00027397,4]
[326757140,1715317848660,-434.11042223,0.00027397,4]
[326757141,1715317848669,-500.0,0.00027397,4]
[326757142,1715317848679,-500.0,0.00027397,4]
[326757143,1715317848687,-528.48,0.00027397,4]
[326757144,1715317848696,-500.0,0.00027397,4]
[326757145,1715317848706,-573.5,0.00027397,4]
[326757146,1715317848715,-508.39695556,0.00027397,4]
[326757147,1715317848725,-615.36,0.00027397,4]
[326757148,1715317848734,-672.63,0.00027397,4]
[326757149,1715317848743,-434.54023978,0.00027397,4]